[Event "Cracovia Chess Festival A 2021"]
[Site "Cracow"]
[Date "2022.01.03"]
[Round "8.20"]
[White "Mika, Tomasz"]
[Black "Seemann, Jakub"]
[Result "0-1"]
[ECO "D00"]
[WhiteElo "2183"]
[BlackElo "2312"]
[Annotator "ChessBase"]
[PlyCount "112"]
[EventDate "2021.12.27"]
[EventCountry "POL"]
[SourceTitle "playchess.com"]
[Source "ChessBase"]
[SourceQuality "1"]
[TimeControl "40/5400+30:1800+30"]

1. d4 {[%emt 0:00:04]} d5 {[%emt 0:00:19]} 2. Bf4 {[%emt 0:00:12]} Nf6 {[%emt 0:00:14]} 3. e3 {[%emt 0:00:21]} c5 {[%emt 0:00:07]} 4. Nf3 {[%emt 0:00:23]} Nc6 {[%emt 0:00:23]} 5. Nbd2 {[%emt 0:00:31]} cxd4 {[%emt 0:00:18]} 6. exd4 {[%emt 0:00:19]} Bf5 {[%emt 0:00:04]} 7. c3 {[%emt 0:00:51]} e6 {[%emt 0:00:05]} 8. Be2 {[%emt 0:03:24]} Bd6 {[%emt 0:03:10]} 9. Bxd6 {[%emt 0:00:17]} Qxd6 {[%emt 0:00:02]} 10. O-O {[%emt 0:01:02]} O-O {[%emt 0:00:28]} 11. Re1 {[%emt 0:00:56]} Ne4 {[%emt 0:07:37]} 12. g3 {[%emt 0:07:01]} h6 {[%emt 0:00:32]} 13. Nxe4 {[%emt 0:07:01]} Bxe4 {[%emt 0:01:05]} 14. Bd3 {[%emt 0:01:32]} Bxd3 {[%emt 0:00:31]} 15. Qxd3 {[%emt 0:00:03]} Rab8 {[%emt 0:01:13]} 16. Ne5 {[%emt 0:01:20]} b5 {[%emt 0:01:40]} 17. a3 {[%emt 0:01:56]} a5 {[%emt 0:00:39]} 18. f4 {[%emt 0:01:00]} Ne7 {[%emt 0:03:35]} 19. Rf1 {[%emt 0:02:56]} h5 {[%emt 0:10:42]} 20. Nf3 {[%emt 0:17:27]} g6 {[%emt 0:02:07]} 21. Rfe1 {[%emt 0:01:58]} Nf5 {[%emt 0:02:56]} 22. Kg2 {[%emt 0:03:10]} Kg7 {[%emt 0:00:47]} 23. h3 {[%emt 0:01:25]} h4 {[%emt 0:08:04]} 24. g4 {[%emt 0:00:33]} Qxf4 {[%emt 0:00:14]} 25. Ne5 {[%emt 0:00:34]} Ng3 {[%emt 0:11:29]} 26. Nd7 {[%emt 0:04:55]} Ne4 {[%emt 0:09:27]} 27. Rf1 {[%emt 0:03:07]} Qc7 {[%emt 0:04:27]} 28. Nxf8 {[%emt 0:00:36]} Rxf8 {[%emt 0:01:38]} 29. Rf3 {[%emt 0:02:27]} Rb8 {[%emt 0:00:25]} 30. Raf1 {[%emt 0:04:41]} f5 {[%emt 0:00:55]} 31. gxf5 {[%emt 0:03:10]} exf5 {[%emt 0:04:08]} 32. Rf4 {[%emt 0:01:57]} b4 {[%emt 0:00:45]} 33. cxb4 {[%emt 0:01:23]} axb4 {[%emt 0:00:27]} 34. a4 {[%emt 0:01:12]} b3 {[%emt 0:07:21]} 35. Qe3 {[%emt 0:04:13]} Qc2+ {[%emt 0:01:29]} 36. R1f2 {[%emt 0:03:13]} Qc6 {[%emt 0:05:05]} 37. Rxh4 {[%emt 0:01:36]} Qf6 {[%emt 0:05:32]} 38. Qh6+ {[%emt 0:02:04]} Kf7 {[%emt 0:00:01]} 39. Qh7+ {[%emt 0:05:32]} Ke6 {[%emt 0:01:04]} 40. Rxe4+ {[%emt 0:00:00]} dxe4 {[%emt 0:00:00]} 41. Qc7 {[%emt 0:08:02]} Rd8 {[%emt 0:13:31]} 42. Qc4+ {[%emt 0:03:26]} Ke7 {[%emt 0:02:27]} 43. Qxb3 {[%emt 0:06:43]} Qxd4 {[%emt 0:00:49]} 44. Rc2 {[%emt 0:03:23]} f4 {[%emt 0:01:47]} 45. Rc7+ {[%emt 0:03:48]} Kd6 {[%emt 0:02:06]} 46. Rc4 {[%emt 0:00:06]} Qd2+ {[%emt 0:02:38]} 47. Kf1 {[%emt 0:00:16]} Qd3+ {[%emt 0:02:01]} 48. Qxd3+ {[%emt 0:00:07]} exd3 {[%emt 0:00:02]} 49. Ke1 {[%emt 0:07:01]} Ke5 {[%emt 0:00:41]} 50. Kd2 {[%emt 0:00:51]} f3 {[%emt 0:01:37]} 51. Rc7 {[%emt 0:04:08]} Rf8 {[%emt 0:02:56]} 52. Rc1 {[%emt 0:02:02]} f2 {[%emt 0:00:07]} 53. Rf1 {[%emt 0:00:05]} Kd4 {[%emt 0:00:26]} 54. a5 {[%emt 0:01:35]} Rc8 {[%emt 0:00:18]} 55. Rxf2 {[%emt 0:00:37]} Rc2+ {[%emt 0:00:03]} 56. Ke1 {[%emt 0:00:19]} Ke3 {[%emt 0:00:03]} 0-1

[Event "Cracovia Chess Festival A 2021"]
[Site "Cracow"]
[Date "2022.01.03"]
[Round "8.21"]
[White "Koziorowicz, Michal"]
[Black "Raczynski, Krzysztof"]
[Result "1-0"]
[ECO "B52"]
[WhiteElo "2309"]
[BlackElo "2194"]
[Annotator "ChessBase"]
[PlyCount "71"]
[EventDate "2021.12.27"]
[EventCountry "POL"]
[SourceTitle "playchess.com"]
[Source "ChessBase"]
[SourceQuality "1"]
[TimeControl "40/5400+30:1800+30"]

1. e4 {[%emt 0:00:01]} c5 {[%emt 0:00:50]} 2. Nf3 {[%emt 0:00:18]} d6 {[%emt 0:00:35]} 3. Bb5+ {[%emt 0:00:10]} Bd7 {[%emt 0:00:24]} 4. Bxd7+ {[%emt 0:00:08]} Qxd7 {[%emt 0:00:06]} 5. O-O {[%emt 0:00:08]} Nf6 {[%emt 0:00:35]} 6. Re1 {[%emt 0:00:06]} Nc6 {[%emt 0:00:48]} 7. c3 {[%emt 0:00:07]} e6 {[%emt 0:01:12]} 8. d4 {[%emt 0:00:06]} cxd4 {[%emt 0:00:10]} 9. cxd4 {[%emt 0:00:05]} d5 {[%emt 0:00:05]} 10. e5 {[%emt 0:00:05]} Ne4 {[%emt 0:00:08]} 11. Nbd2 {[%emt 0:00:06]} Nxd2 {[%emt 0:02:00]} 12. Bxd2 {[%emt 0:00:06]} Be7 {[%emt 0:00:08]} 13. Rc1 {[%emt 0:00:06]} O-O {[%emt 0:00:54]} 14. a3 {[%emt 0:01:07]} Rac8 {[%emt 0:07:24]} 15. Rc3 {[%emt 0:00:14]} b5 {[%emt 0:08:03]} 16. Rd3 {[%emt 0:01:50]} a5 {[%emt 0:03:32]} 17. h4 {[%emt 0:00:36]} Rc7 {[%emt 0:11:50]} 18. Ng5 {[%emt 0:02:14]} Bxg5 {[%emt 0:03:01]} 19. hxg5 {[%emt 0:00:10]} g6 {[%emt 0:02:21]} 20. g4 {[%emt 0:07:10]} Rfc8 {[%emt 0:04:36]} 21. Kg2 {[%emt 0:01:03]} b4 {[%emt 0:09:13]} 22. Qf3 {[%emt 0:08:16]} Qe7 {[%emt 0:02:47]} 23. Rh1 {[%emt 0:00:17]} Nd8 {[%emt 0:03:44]} 24. Qf6 {[%emt 0:02:33]} Qxf6 {[%emt 0:02:21]} 25. gxf6 {[%emt 0:00:07]} Kf8 {[%emt 0:08:21]} 26. axb4 {[%emt 0:01:12]} Rc2 {[%emt 0:02:31]} 27. Rxh7 {[%emt 0:06:26]} Ke8 {[%emt 0:00:11]} 28. b3 {[%emt 0:00:05]} axb4 {[%emt 0:02:28]} 29. Bxb4 {[%emt 0:00:11]} Nc6 {[%emt 0:07:20]} 30. Bc5 {[%emt 0:00:30]} Nxe5 {[%emt 0:01:38]} 31. dxe5 {[%emt 0:00:05]} R2xc5 {[%emt 0:00:27]} 32. Rd4 {[%emt 0:05:28]} Rb5 {[%emt 0:02:08]} 33. Ra4 {[%emt 0:00:23]} Rb7 {[%emt 0:00:27]} 34. Ra6 {[%emt 0:00:18]} Rd8 {[%emt 0:08:06]} 35. Rh8+ {[%emt 0:00:40]} Kd7 {[%emt 0:00:02]} 36. Rd6+ {[%emt 0:00:08]} 1-0

[Event "Cracovia Chess Festival A 2021"]
[Site "Cracow"]
[Date "2022.01.03"]
[Round "8.23"]
[White "Piekielny, Pawel"]
[Black "Warakomska, Anna"]
[Result "0-1"]
[ECO "B48"]
[WhiteElo "2104"]
[BlackElo "2276"]
[Annotator "ChessBase"]
[PlyCount "70"]
[EventDate "2021.12.27"]
[EventCountry "POL"]
[SourceTitle "playchess.com"]
[Source "ChessBase"]
[SourceQuality "1"]
[TimeControl "40/5400+30:1800+30"]

1. e4 {[%emt 0:00:02]} c5 {[%emt 0:00:18]} 2. Nf3 {[%emt 0:00:08]} e6 {[%emt 0:00:05]} 3. d4 {[%emt 0:00:06]} cxd4 {[%emt 0:00:04]} 4. Nxd4 {[%emt 0:00:06]} Nc6 {[%emt 0:00:08]} 5. Nc3 {[%emt 0:00:08]} Qc7 {[%emt 0:00:04]} 6. Be3 {[%emt 0:00:42]} a6 {[%emt 0:00:05]} 7. Qd2 {[%emt 0:01:40]} Nf6 {[%emt 0:01:29]} 8. O-O-O {[%emt 0:00:17]} Be7 {[%emt 0:02:30]} 9. f3 {[%emt 0:02:33]} b5 {[%emt 0:01:03]} 10. g4 {[%emt 0:03:02]} Nxd4 {[%emt 0:00:34]} 11. Bxd4 {[%emt 0:00:28]} Bb7 {[%emt 0:00:09]} 12. g5 {[%emt 0:04:12]} Nh5 {[%emt 0:00:36]} 13. Kb1 {[%emt 0:03:13]} O-O {[%emt 0:00:31]} 14. Bd3 {[%emt 0:06:56]} Nf4 {[%emt 0:06:16]} 15. Ne2 {[%emt 0:04:26]} Nxd3 {[%emt 0:12:05]} 16. cxd3 {[%emt 0:01:12]} e5 {[%emt 0:01:55]} 17. Rc1 {[%emt 0:03:43]} Qb8 {[%emt 0:02:01]} 18. Bc5 {[%emt 0:12:53]} d6 {[%emt 0:02:34]} 19. Bb6 {[%emt 0:08:20]} Rc8 {[%emt 0:07:26]} 20. h4 {[%emt 0:00:22]} d5 {[%emt 0:03:47]} 21. Rxc8+ {[%emt 0:14:17]} Qxc8 {[%emt 0:07:21]} 22. Ng3 {[%emt 0:01:40]} Qe6 {[%emt 0:01:51]} 23. Nf5 {[%emt 0:03:17]} Bf8 {[%emt 0:00:30]} 24. Ba5 {[%emt 0:01:51]} Rc8 {[%emt 0:04:26]} 25. Bb4 {[%emt 0:04:11]} dxe4 {[%emt 0:07:11]} 26. dxe4 {[%emt 0:03:39]} Bxe4+ {[%emt 0:03:12]} 27. fxe4 {[%emt 0:00:57]} Qc4 {[%emt 0:00:05]} 28. Qg2 {[%emt 0:05:20]} Qd3+ {[%emt 0:08:19]} 29. Ka1 {[%emt 0:00:05]} Bxb4 {[%emt 0:00:04]} 30. Qg4 {[%emt 0:04:19]} Qc2 {[%emt 0:04:30]} 31. Rb1 {[%emt 0:00:58]} Rc4 {[%emt 0:08:01]} 32. a3 {[%emt 0:09:50]} Bxa3 {[%emt 0:02:17]} 33. bxa3 {[%emt 0:00:58]} Rc3 {[%emt 0:00:36]} 34. Nh6+ {[%emt 0:00:52]} Kf8 35. Qd1 {[%emt 0:00:34]} Rxa3# {[%emt 0:00:25]} 0-1

[Event "Cracovia Chess Festival A 2021"]
[Site "Cracow"]
[Date "2022.01.03"]
[Round "8.25"]
[White "Krawczyk, Flawian"]
[Black "Dev, Shah"]
[Result "0-1"]
[ECO "C77"]
[WhiteElo "2114"]
[BlackElo "2243"]
[Annotator "ChessBase"]
[PlyCount "90"]
[EventDate "2021.12.27"]
[EventCountry "POL"]
[SourceTitle "playchess.com"]
[Source "ChessBase"]
[SourceQuality "1"]
[TimeControl "40/5400+30:1800+30"]

1. e4 {[%emt 0:00:07]} e5 {[%emt 0:00:07]} 2. Nf3 {[%emt 0:00:05]} Nc6 {[%emt 0:00:05]} 3. Bb5 {[%emt 0:00:03]} a6 {[%emt 0:00:07]} 4. Ba4 {[%emt 0:00:02]} Nf6 {[%emt 0:00:07]} 5. d3 {[%emt 0:00:03]} b5 {[%emt 0:00:09]} 6. Bb3 {[%emt 0:00:01]} Bc5 {[%emt 0:00:09]} 7. Nc3 {[%emt 0:00:05]} d6 {[%emt 0:00:06]} 8. Nd5 {[%emt 0:00:04]} h6 {[%emt 0:00:06]} 9. c3 {[%emt 0:00:03]} Be6 {[%emt 0:01:00]} 10. O-O {[%emt 0:00:22]} Bxd5 {[%emt 0:00:10]} 11. exd5 {[%emt 0:00:05]} Ne7 {[%emt 0:00:10]} 12. d4 {[%emt 0:00:08]} exd4 {[%emt 0:00:11]} 13. Nxd4 {[%emt 0:00:53]} Qd7 {[%emt 0:00:26]} 14. Re1 {[%emt 0:05:54]} O-O {[%emt 0:01:27]} 15. Qf3 {[%emt 0:01:23]} Bxd4 {[%emt 0:05:47]} 16. cxd4 {[%emt 0:01:10]} Nf5 {[%emt 0:04:58]} 17. Qd3 {[%emt 0:02:07]} Rae8 {[%emt 0:01:56]} 18. Bd2 {[%emt 0:00:12]} Re7 {[%emt 0:20:03]} 19. Bc2 {[%emt 0:29:23]} g6 {[%emt 0:11:32]} 20. Rxe7 {[%emt 0:21:36]} Qxe7 {[%emt 0:03:46]} 21. Re1 {[%emt 0:00:15]} Qd7 {[%emt 0:03:34]} 22. Qf3 {[%emt 0:03:58]} Kg7 {[%emt 0:02:47]} 23. Be3 {[%emt 0:07:32]} Re8 {[%emt 0:06:10]} 24. Qh3 {[%emt 0:02:07]} h5 {[%emt 0:02:08]} 25. g3 {[%emt 0:10:00]} Ng4 {[%emt 0:03:16]} 26. Bxf5 {[%emt 0:00:50]} Qxf5 {[%emt 0:00:07]} 27. Qg2 {[%emt 0:01:39]} Kg8 {[%emt 0:01:51]} 28. Rc1 {[%emt 0:03:44]} Nxe3 {[%emt 0:00:21]} 29. fxe3 {[%emt 0:00:12]} Rxe3 {[%emt 0:00:06]} 30. Rf1 {[%emt 0:00:52]} Qe4 {[%emt 0:06:31]} 31. Qf2 {[%emt 0:00:26]} f5 {[%emt 0:00:32]} 32. Qf4 {[%emt 0:01:46]} Qxf4 {[%emt 0:01:14]} 33. gxf4 {[%emt 0:00:02]} Re4 {[%emt 0:03:02]} 34. Rc1 {[%emt 0:00:03]} Rxf4 {[%emt 0:00:08]} 35. Rxc7 {[%emt 0:00:24]} Rxd4 {[%emt 0:00:07]} 36. Kf2 {[%emt 0:00:05]} g5 {[%emt 0:00:22]} 37. Ke3 {[%emt 0:00:15]} Rxd5 {[%emt 0:00:07]} 38. h4 {[%emt 0:00:04]} f4+ {[%emt 0:00:44]} 39. Kf3 {[%emt 0:00:04]} Rd3+ {[%emt 0:00:05]} 40. Ke4 {[%emt 0:00:00]} Re3+ {[%emt 0:00:00]} 41. Kf5 {[%emt 0:00:08]} gxh4 {[%emt 0:04:02]} 42. Kf6 {[%emt 0:00:41]} Rg3 {[%emt 0:00:55]} 43. Rc8+ {[%emt 0:00:21]} Kh7 {[%emt 0:00:00]} 44. Rc7+ {[%emt 0:00:10]} Kh8 {[%emt 0:01:04]} 45. Rc8+ {[%emt 0:00:06]} Rg8 {[%emt 0:00:05]} 0-1

[Event "Cracovia Chess Festival A 2021"]
[Site "Cracow"]
[Date "2022.01.03"]
[Round "8.26"]
[White "Salna, Aleksandras"]
[Black "Barath Kalyan M"]
[Result "0-1"]
[ECO "E16"]
[WhiteElo "2227"]
[BlackElo "2103"]
[Annotator "ChessBase"]
[PlyCount "130"]
[EventDate "2021.12.27"]
[EventCountry "POL"]
[SourceTitle "playchess.com"]
[Source "ChessBase"]
[SourceQuality "1"]
[TimeControl "40/5400+30:1800+30"]

1. d4 {[%emt 0:00:02]} Nf6 {[%emt 0:11:29]} 2. c4 {[%emt 0:00:26]} e6 {[%emt 0:00:06]} 3. Nf3 {[%emt 0:00:14]} Bb4+ {[%emt 0:00:06]} 4. Bd2 {[%emt 0:00:06]} Qe7 {[%emt 0:00:06]} 5. Nc3 {[%emt 0:01:45]} O-O {[%emt 0:01:30]} 6. g3 {[%emt 0:00:23]} d6 {[%emt 0:01:06]} 7. Bg2 {[%emt 0:00:36]} Bxc3 {[%emt 0:00:44]} 8. Bxc3 {[%emt 0:00:08]} Ne4 {[%emt 0:00:05]} 9. Rc1 {[%emt 0:00:59]} Nxc3 {[%emt 0:01:36]} 10. Rxc3 {[%emt 0:00:09]} a5 {[%emt 0:00:23]} 11. O-O {[%emt 0:03:57]} Nd7 {[%emt 0:00:49]} 12. Qc2 {[%emt 0:07:15]} e5 {[%emt 0:01:33]} 13. c5 {[%emt 0:04:46]} e4 {[%emt 0:17:43]} 14. Nd2 {[%emt 0:02:11]} d5 {[%emt 0:03:06]} 15. c6 {[%emt 0:02:15]} bxc6 {[%emt 0:00:57]} 16. Rxc6 {[%emt 0:03:16]} e3 {[%emt 0:03:44]} 17. Nf3 {[%emt 0:01:29]} Ba6 {[%emt 0:10:55]} 18. Bh3 {[%emt 0:06:58]} Nf6 {[%emt 0:13:07]} 19. Rxc7 {[%emt 0:13:11]} exf2+ {[%emt 0:04:56]} 20. Rxf2 {[%emt 0:00:42]} Qe3 {[%emt 0:00:06]} 21. Qd2 {[%emt 0:02:01]} Qxf2+ {[%emt 0:00:17]} 22. Kxf2 {[%emt 0:00:07]} Ne4+ {[%emt 0:00:04]} 23. Ke1 {[%emt 0:00:08]} Nxd2 {[%emt 0:00:10]} 24. Kxd2 {[%emt 0:00:04]} Rfe8 {[%emt 0:01:26]} 25. e3 {[%emt 0:00:21]} Rab8 {[%emt 0:00:45]} 26. b3 {[%emt 0:00:54]} a4 {[%emt 0:01:09]} 27. Rc3 {[%emt 0:01:54]} axb3 {[%emt 0:02:08]} 28. axb3 {[%emt 0:00:03]} f6 {[%emt 0:02:03]} 29. Ne1 {[%emt 0:00:33]} Bc8 {[%emt 0:01:00]} 30. Bg2 {[%emt 0:00:47]} Be6 {[%emt 0:00:07]} 31. Nd3 {[%emt 0:00:17]} Bf7 {[%emt 0:04:24]} 32. b4 {[%emt 0:08:44]} Re7 {[%emt 0:00:19]} 33. Rb3 {[%emt 0:02:25]} Ra7 {[%emt 0:01:59]} 34. Rb2 {[%emt 0:01:27]} Kf8 {[%emt 0:02:43]} 35. Nc5 {[%emt 0:02:46]} Ke7 {[%emt 0:00:22]} 36. Bf1 {[%emt 0:01:22]} Kd6 {[%emt 0:00:50]} 37. Ba6 {[%emt 0:01:03]} Rb6 {[%emt 0:01:15]} 38. b5 {[%emt 0:02:55]} Be8 {[%emt 0:02:48]} 39. Kc3 {[%emt 0:00:13]} Re7 {[%emt 0:03:10]} 40. Kb4 {[%emt 0:00:00]} Rxe3 {[%emt 0:00:00]} 41. Nb7+ {[%emt 0:07:55]} Kc7 {[%emt 0:01:58]} 42. Rc2+ {[%emt 0:04:19]} Kb8 {[%emt 0:00:11]} 43. Nd8 {[%emt 0:05:39]} Bd7 {[%emt 0:02:56]} 44. Ka5 {[%emt 0:01:56]} Rd6 {[%emt 0:03:43]} 45. Nb7 {[%emt 0:00:40]} Ra3+ {[%emt 0:02:32]} 46. Kb4 {[%emt 0:00:06]} Rdxa6 {[%emt 0:03:41]} 47. bxa6 {[%emt 0:00:08]} Ra4+ {[%emt 0:00:08]} 48. Kb3 {[%emt 0:05:10]} Rxd4 {[%emt 0:00:11]} 49. Nc5 {[%emt 0:00:09]} Bc8 {[%emt 0:00:28]} 50. Re2 {[%emt 0:01:46]} Rc4 {[%emt 0:00:14]} 51. Na4 {[%emt 0:00:48]} Bxa6 {[%emt 0:00:53]} 52. Re8+ {[%emt 0:04:43]} Rc8 {[%emt 0:00:36]} 53. Re6 {[%emt 0:00:42]} Bb7 {[%emt 0:05:46]} 54. Kb4 {[%emt 0:01:49]} Rd8 {[%emt 0:05:38]} 55. Kc3 {[%emt 0:02:00]} d4+ {[%emt 0:00:23]} 56. Kd3 {[%emt 0:00:47]} Bc8 {[%emt 0:00:05]} 57. Rb6+ {[%emt 0:04:02]} Kc7 {[%emt 0:00:07]} 58. Rb4 {[%emt 0:00:18]} Bf5+ {[%emt 0:00:25]} 59. Kd2 {[%emt 0:00:05]} d3 {[%emt 0:01:10]} 60. g4 {[%emt 0:00:17]} Bg6 {[%emt 0:00:25]} 61. Nc5 {[%emt 0:01:23]} Re8 {[%emt 0:01:14]} 62. h4 {[%emt 0:01:52]} Re2+ {[%emt 0:01:29]} 63. Kd1 {[%emt 0:00:20]} Kc6 {[%emt 0:02:20]} 64. Nb3 {[%emt 0:00:08]} Rg2 {[%emt 0:04:00]} 65. Nc1 {[%emt 0:09:12]} Rxg4 {[%emt 0:01:12]} 0-1

[Event "Cracovia Chess Festival A 2021"]
[Site "Cracow"]
[Date "2022.01.03"]
[Round "8.27"]
[White "Redzisz, Michal"]
[Black "Luberanski, Jakub"]
[Result "1/2-1/2"]
[ECO "E46"]
[WhiteElo "2261"]
[BlackElo "2166"]
[Annotator "ChessBase"]
[PlyCount "91"]
[EventDate "2021.12.27"]
[EventCountry "POL"]
[SourceTitle "playchess.com"]
[Source "ChessBase"]
[SourceQuality "1"]
[TimeControl "40/5400+30:1800+30"]

1. d4 {[%emt 0:00:21]} Nf6 {[%emt 0:00:04]} 2. c4 {[%emt 0:00:02]} e6 {[%emt 0:00:04]} 3. Nc3 {[%emt 0:01:52]} Bb4 {[%emt 0:00:06]} 4. e3 {[%emt 0:01:30]} O-O {[%emt 0:00:06]} 5. Nge2 {[%emt 0:00:54]} d5 {[%emt 0:00:21]} 6. a3 {[%emt 0:00:05]} Be7 {[%emt 0:00:17]} 7. cxd5 {[%emt 0:00:02]} exd5 {[%emt 0:00:05]} 8. Nf4 {[%emt 0:00:02]} c6 {[%emt 0:01:34]} 9. Bd3 {[%emt 0:00:06]} Re8 {[%emt 0:01:52]} 10. O-O {[%emt 0:00:05]} Nbd7 {[%emt 0:00:06]} 11. f3 {[%emt 0:00:02]} Nf8 {[%emt 0:00:06]} 12. Bc2 {[%emt 0:00:02]} Ne6 {[%emt 0:01:46]} 13. e4 {[%emt 0:00:01]} dxe4 {[%emt 0:00:47]} 14. Nxe6 {[%emt 0:00:02]} Bxe6 {[%emt 0:00:07]} 15. fxe4 {[%emt 0:00:02]} c5 {[%emt 0:02:43]} 16. d5 {[%emt 0:20:51]} Bg4 {[%emt 0:00:08]} 17. Qd3 {[%emt 0:00:32]} Bd6 {[%emt 0:22:00]} 18. Bf4 {[%emt 0:16:28]} Bh5 {[%emt 0:25:43]} 19. Qg3 {[%emt 0:21:10]} Bxf4 {[%emt 0:00:41]} 20. Qxf4 {[%emt 0:00:03]} Qe7 {[%emt 0:05:10]} 21. Ba4 {[%emt 0:14:45]} Red8 {[%emt 0:06:41]} 22. h3 {[%emt 0:00:06]} a6 {[%emt 0:09:57]} 23. Bc2 {[%emt 0:05:38]} Re8 {[%emt 0:02:15]} 24. a4 {[%emt 0:00:19]} Bg6 {[%emt 0:00:59]} 25. Rfe1 {[%emt 0:01:26]} Qe5 {[%emt 0:01:50]} 26. Qf2 {[%emt 0:01:59]} Nd7 {[%emt 0:03:57]} 27. a5 {[%emt 0:01:45]} b5 {[%emt 0:01:20]} 28. axb6 {[%emt 0:00:13]} Nxb6 {[%emt 0:00:03]} 29. Qxc5 {[%emt 0:00:40]} Rab8 {[%emt 0:00:06]} 30. Bd3 {[%emt 0:04:52]} Rec8 {[%emt 0:00:14]} 31. Qf2 {[%emt 0:00:17]} Nc4 {[%emt 0:01:33]} 32. Bxc4 {[%emt 0:00:43]} Rxc4 {[%emt 0:00:04]} 33. Rxa6 {[%emt 0:03:23]} Rcb4 {[%emt 0:00:23]} 34. d6 {[%emt 0:01:26]} h6 {[%emt 0:01:29]} 35. d7 {[%emt 0:01:42]} Rd4 {[%emt 0:02:20]} 36. Ra5 {[%emt 0:00:02]} Qd6 {[%emt 0:01:05]} 37. Nb5 {[%emt 0:02:06]} Rxb5 {[%emt 0:00:21]} 38. Rxb5 {[%emt 0:00:39]} Qxd7 {[%emt 0:00:03]} 39. Rb8+ {[%emt 0:01:36]} Kh7 {[%emt 0:00:05]} 40. Rb7 {[%emt 0:00:00]} Qd8 {[%emt 0:00:00]} 41. Rb3 {[%emt 0:18:05]} Bxe4 {[%emt 0:06:01]} 42. Rbe3 {[%emt 0:07:36]} f5 {[%emt 0:00:28]} 43. R3e2 {[%emt 0:03:15]} Qd6 {[%emt 0:02:06]} 44. Qe3 {[%emt 0:01:41]} Rd3 {[%emt 0:01:41]} 45. Qa7 {[%emt 0:01:28]} Qg6 {[%emt 0:00:45]} 46. Kf1 {[%emt 0:00:33]} 1/2-1/2

[Event "Cracovia Chess Festival A 2021"]
[Site "Cracow"]
[Date "2022.01.03"]
[Round "8.28"]
[White "Kopylov, Michael"]
[Black "Luba, Lukasz"]
[Result "1-0"]
[ECO "A53"]
[WhiteElo "2391"]
[BlackElo "2135"]
[Annotator "ChessBase"]
[PlyCount "61"]
[EventDate "2021.12.27"]
[EventCountry "POL"]
[SourceTitle "playchess.com"]
[Source "ChessBase"]
[SourceQuality "1"]
[TimeControl "40/5400+30:1800+30"]

1. d4 {[%emt 0:00:29]} Nf6 {[%emt 0:13:09]} 2. c4 {[%emt 0:00:09]} d6 {[%emt 0:00:30]} 3. Nf3 {[%emt 0:01:34]} h6 {[%emt 0:00:13]} 4. Nc3 {[%emt 0:01:20]} Nc6 {[%emt 0:00:09]} 5. g3 {[%emt 0:01:25]} Bf5 {[%emt 0:01:42]} 6. d5 {[%emt 0:03:07]} Nb8 {[%emt 0:00:28]} 7. Bg2 {[%emt 0:03:19]} Qc8 {[%emt 0:00:01]} 8. O-O {[%emt 0:00:39]} Bh3 {[%emt 0:00:06]} 9. e4 {[%emt 0:00:36]} Bxg2 {[%emt 0:02:39]} 10. Kxg2 {[%emt 0:00:33]} Nbd7 {[%emt 0:00:05]} 11. Re1 {[%emt 0:01:03]} Ne5 {[%emt 0:00:10]} 12. Nxe5 {[%emt 0:09:00]} dxe5 13. f4 {[%emt 0:00:10]} Nd7 {[%emt 0:07:24]} 14. fxe5 {[%emt 0:01:31]} Nxe5 {[%emt 0:01:01]} 15. Qd4 {[%emt 0:04:50]} f6 {[%emt 0:02:13]} 16. Bf4 {[%emt 0:01:37]} c5 {[%emt 0:13:53]} 17. Qd1 {[%emt 0:03:30]} h5 {[%emt 0:05:23]} 18. Bxe5 {[%emt 0:03:29]} fxe5 {[%emt 0:00:08]} 19. Rf1 {[%emt 0:00:59]} h4 {[%emt 0:06:40]} 20. Qf3 {[%emt 0:01:07]} hxg3 {[%emt 0:00:41]} 21. Qf7+ {[%emt 0:00:25]} Kd7 {[%emt 0:00:44]} 22. hxg3 {[%emt 0:01:55]} Kc7 {[%emt 0:04:42]} 23. d6+ {[%emt 0:15:55]} Kb6 {[%emt 0:00:47]} 24. Nd5+ {[%emt 0:01:18]} Ka5 {[%emt 0:00:22]} 25. Rh1 {[%emt 0:12:13]} Rxh1 {[%emt 0:09:14]} 26. Rxh1 {[%emt 0:00:05]} e6 {[%emt 0:01:59]} 27. Nc7 {[%emt 0:04:43]} Bxd6 {[%emt 0:00:08]} 28. Nxa8 {[%emt 0:00:34]} Qxa8 {[%emt 0:00:12]} 29. Qd7 {[%emt 0:00:51]} a6 {[%emt 0:00:21]} 30. Qxd6 {[%emt 0:00:10]} b5 {[%emt 0:00:04]} 31. Qxe5 {[%emt 0:01:19]} 1-0